[Event "Titled Tuesday Blitz August 17 2021"]
[White "Sychev, Klementy"]
[Black "Swapnil, S. Dhopade"]
[WhiteFideId "4114060"]
[BlackFideId "5019184"]
[WhiteElo "2615"]
[BlackElo "2402"]
[Result "1-0"]
[Round "04"]
[TimeControl "180+1"]
[Date "2021.08.17"]
[WhiteClock "0:00:27"]
[BlackClock "0:00:02"]

1. e4 {[%clk 0:02:58]}  c6 {[%clk 0:03:00]} 2. d4 {[%clk 0:02:55]}  d5 {[%clk 0:03:01]} 3. e5 {[%clk 0:02:55]}  Bf5 {[%clk 0:03:01]} 4. Nf3 {[%clk 0:02:55]}  e6 {[%clk 0:03:01]} 5. Be2 {[%clk 0:02:55]}  Ne7 {[%clk 0:03:00]} 6. O-O {[%clk 0:02:55]}  Nc8 {[%clk 0:03:00]} 7. Be3 {[%clk 0:02:50]}  Be7 {[%clk 0:02:59]} 8. Nbd2 {[%clk 0:02:50]}  Nd7 {[%clk 0:03:00]} 9. Ne1 {[%clk 0:02:50]}  O-O {[%clk 0:02:56]} 10. g4 {[%clk 0:02:50]}  Bg6 {[%clk 0:02:55]} 11. f4 {[%clk 0:02:50]}  f6 {[%clk 0:02:47]} 12. Nd3 {[%clk 0:02:42]}  fxe5 {[%clk 0:02:16]} 13. fxe5 {[%clk 0:02:41]}  Rxf1+ {[%clk 0:02:11]} 14. Bxf1 {[%clk 0:02:41]}  Bg5 {[%clk 0:01:50]} 15. Qf3 {[%clk 0:02:34]}  Bxe3+ {[%clk 0:01:43]} 16. Qxe3 {[%clk 0:02:34]}  Qe7 {[%clk 0:01:37]} 17. c3 {[%clk 0:02:26]}  Ncb6 {[%clk 0:01:34]} 18. Nf4 {[%clk 0:02:18]}  Qg5 {[%clk 0:01:34]} 19. h3 {[%clk 0:02:18]}  Rf8 {[%clk 0:01:33]} 20. Nxd5 {[%clk 0:02:12]}  Qxe3+ {[%clk 0:01:06]} 21. Nxe3 {[%clk 0:02:11]}  c5 {[%clk 0:01:04]} 22. Bg2 {[%clk 0:02:08]}  cxd4 {[%clk 0:01:03]} 23. cxd4 {[%clk 0:02:08]}  Rf4 {[%clk 0:01:01]} 24. Nb3 {[%clk 0:02:07]}  Be4 {[%clk 0:01:02]} 25. Rc1 {[%clk 0:01:49]}  Bxg2 {[%clk 0:00:58]} 26. Kxg2 {[%clk 0:01:48]}  a5 {[%clk 0:00:31]} 27. Kg3 {[%clk 0:01:47]}  g5 {[%clk 0:00:31]} 28. Ng2 {[%clk 0:01:42]}  a4 {[%clk 0:00:19]} 29. Nxf4 {[%clk 0:01:25]}  gxf4+ {[%clk 0:00:20]} 30. Kxf4 {[%clk 0:01:26]}  axb3 {[%clk 0:00:21]} 31. axb3 {[%clk 0:01:25]}  Nd5+ {[%clk 0:00:21]} 32. Kg5 {[%clk 0:01:23]}  Kg7 {[%clk 0:00:20]} 33. Rc8 {[%clk 0:01:22]}  h6+ {[%clk 0:00:19]} 34. Kh4 {[%clk 0:01:22]}  Nf8 {[%clk 0:00:17]} 35. Rb8 {[%clk 0:01:18]}  b6 {[%clk 0:00:17]} 36. Kg3 {[%clk 0:01:13]}  Ng6 {[%clk 0:00:17]} 37. h4 {[%clk 0:01:13]}  Nge7 {[%clk 0:00:17]} 38. h5 {[%clk 0:01:11]}  Nc6 {[%clk 0:00:16]} 39. Rb7+ {[%clk 0:01:09]}  Kg8 {[%clk 0:00:17]} 40. g5 {[%clk 0:01:05]}  hxg5 {[%clk 0:00:17]} 41. Kg4 {[%clk 0:01:05]}  Nxd4 {[%clk 0:00:18]} 42. Kxg5 {[%clk 0:01:06]}  Nf3+ {[%clk 0:00:19]} 43. Kg4 {[%clk 0:00:47]}  Nxe5+ {[%clk 0:00:19]} 44. Kh4 {[%clk 0:00:46]}  Nf3+ {[%clk 0:00:16]} 45. Kg3 {[%clk 0:00:46]}  Ne5 {[%clk 0:00:12]} 46. h6 {[%clk 0:00:46]}  Nf6 {[%clk 0:00:08]} 47. Rxb6 {[%clk 0:00:40]}  Kf7 {[%clk 0:00:08]} 48. b4 {[%clk 0:00:31]}  Nd5 {[%clk 0:00:02]} 49. Rb7+ {[%clk 0:00:30]}  Kg8 {[%clk 0:00:02]} 50. b5 {[%clk 0:00:27]}  Nc4 {[%clk 0:00:02]} 1-0


[Site "https://www.chess.com"]

[Event "Titled Tuesday Blitz August 17 2021"]
[White "Timofeev, Artyom"]
[Black "Taichman, Ori"]
[WhiteFideId "4140419"]
[BlackFideId "2804069"]
[WhiteElo "2582"]
[BlackElo "2227"]
[Result "1-0"]
[Round "04"]
[TimeControl "180+1"]
[Date "2021.08.17"]
[WhiteClock "0:01:21"]
[BlackClock "0:00:05"]

1. c4 {[%clk 0:03:00]}  g6 {[%clk 0:02:55]} 2. g3 {[%clk 0:03:00]}  Bg7 {[%clk 0:02:55]} 3. Bg2 {[%clk 0:03:00]}  Nf6 {[%clk 0:02:56]} 4. Nc3 {[%clk 0:02:59]}  O-O {[%clk 0:02:56]} 5. d3 {[%clk 0:03:00]}  d6 {[%clk 0:02:57]} 6. Nf3 {[%clk 0:02:59]}  Nc6 {[%clk 0:02:57]} 7. O-O {[%clk 0:02:59]}  e5 {[%clk 0:02:57]} 8. Rb1 {[%clk 0:02:58]}  a5 {[%clk 0:02:57]} 9. b3 {[%clk 0:02:58]}  Rb8 {[%clk 0:02:47]} 10. Bb2 {[%clk 0:02:56]}  Bg4 {[%clk 0:02:46]} 11. h3 {[%clk 0:02:56]}  Bxf3 {[%clk 0:02:47]} 12. Bxf3 {[%clk 0:02:56]}  Nd4 {[%clk 0:02:47]} 13. Bg2 {[%clk 0:02:56]}  c6 {[%clk 0:02:47]} 14. e3 {[%clk 0:02:52]}  Ne6 {[%clk 0:02:47]} 15. Rc1 {[%clk 0:02:51]}  Qd7 {[%clk 0:02:45]} 16. Kh2 {[%clk 0:02:50]}  Rfc8 {[%clk 0:02:38]} 17. Qe2 {[%clk 0:02:47]}  b5 {[%clk 0:02:38]} 18. cxb5 {[%clk 0:02:37]}  cxb5 {[%clk 0:02:39]} 19. h4 {[%clk 0:02:27]}  Rc5 {[%clk 0:02:24]} 20. Bh3 {[%clk 0:02:23]}  Rbc8 {[%clk 0:02:13]} 21. d4 {[%clk 0:01:57]}  exd4 {[%clk 0:02:12]} 22. exd4 {[%clk 0:01:57]}  Nxd4 {[%clk 0:01:57]} 23. Bxd7 {[%clk 0:01:56]}  Nxe2 {[%clk 0:01:57]} 24. Bxc8 {[%clk 0:01:57]}  Nxc1 {[%clk 0:01:57]} 25. Rxc1 {[%clk 0:01:57]}  Rxc8 {[%clk 0:01:56]} 26. Nxb5 {[%clk 0:01:51]}  Rxc1 {[%clk 0:01:47]} 27. Bxc1 {[%clk 0:01:51]}  Ne4 {[%clk 0:01:40]} 28. Kg2 {[%clk 0:01:51]}  f5 {[%clk 0:01:26]} 29. Be3 {[%clk 0:01:40]}  Nc3 {[%clk 0:01:20]} 30. Nxc3 {[%clk 0:01:37]}  Bxc3 {[%clk 0:01:21]} 31. Kf1 {[%clk 0:01:37]}  Kf7 {[%clk 0:01:20]} 32. Ke2 {[%clk 0:01:37]}  d5 {[%clk 0:00:57]} 33. Bd2 {[%clk 0:01:34]}  Bb4 {[%clk 0:00:46]} 34. a4 {[%clk 0:01:34]}  Bxd2 {[%clk 0:00:33]} 35. Kxd2 {[%clk 0:01:34]}  Ke6 {[%clk 0:00:34]} 36. Kc3 {[%clk 0:01:28]}  Ke5 {[%clk 0:00:09]} 37. b4 {[%clk 0:01:28]}  d4+ {[%clk 0:00:09]} 38. Kc4 {[%clk 0:01:28]}  axb4 {[%clk 0:00:10]} 39. Kxb4 {[%clk 0:01:29]}  f4 {[%clk 0:00:06]} 40. gxf4+ {[%clk 0:01:22]}  Kxf4 {[%clk 0:00:06]} 41. Kc4 {[%clk 0:01:22]}  h5 {[%clk 0:00:04]} 42. a5 {[%clk 0:01:21]}  g5 {[%clk 0:00:04]} 43. a6 {[%clk 0:01:21]}  gxh4 {[%clk 0:00:04]} 44. a7 {[%clk 0:01:21]}  h3 {[%clk 0:00:05]} 45. a8=Q {[%clk 0:01:21]}  h2 {[%clk 0:00:05]} 46. Qh1 {[%clk 0:01:21]} 1-0


[Site "https://www.chess.com"]

[Event "Titled Tuesday Blitz August 17 2021"]
[White "Tregubov, Pavel V."]
[Black "Esenbek Uulu, Ilimbek"]
[WhiteFideId "4115341"]
[BlackFideId "13800680"]
[WhiteElo "2423"]
[BlackElo "2103"]
[Result "1-0"]
[Round "04"]
[TimeControl "180+1"]
[Date "2021.08.18"]
[WhiteClock "0:00:34"]
[BlackClock "0:00:01"]

1. e4 {[%clk 0:03:00]}  c5 {[%clk 0:02:58]} 2. Nf3 {[%clk 0:03:00]}  d6 {[%clk 0:02:56]} 3. Bb5+ {[%clk 0:02:57]}  Bd7 {[%clk 0:02:54]} 4. Bxd7+ {[%clk 0:02:56]}  Qxd7 {[%clk 0:02:54]} 5. O-O {[%clk 0:02:56]}  Nc6 {[%clk 0:02:55]} 6. c3 {[%clk 0:02:56]}  Nf6 {[%clk 0:02:53]} 7. Qe2 {[%clk 0:02:56]}  e6 {[%clk 0:02:51]} 8. d4 {[%clk 0:02:56]}  d5 {[%clk 0:02:48]} 9. e5 {[%clk 0:02:47]}  Ne4 {[%clk 0:02:48]} 10. Nbd2 {[%clk 0:02:47]}  Nxd2 {[%clk 0:02:42]} 11. Bxd2 {[%clk 0:02:47]}  cxd4 {[%clk 0:02:39]} 12. cxd4 {[%clk 0:02:47]}  Be7 {[%clk 0:02:39]} 13. h4 {[%clk 0:02:46]}  O-O {[%clk 0:02:27]} 14. Qd3 {[%clk 0:02:46]}  h6 {[%clk 0:02:21]} 15. h5 {[%clk 0:02:40]}  Rfc8 {[%clk 0:02:13]} 16. Nh2 {[%clk 0:02:38]}  Bf8 {[%clk 0:02:09]} 17. Ng4 {[%clk 0:02:38]}  Be7 {[%clk 0:01:48]} 18. Rac1 {[%clk 0:02:28]}  Qd8 {[%clk 0:01:31]} 19. Qg3 {[%clk 0:01:58]}  Bg5 {[%clk 0:01:23]} 20. Be3 {[%clk 0:01:45]}  Kh8 {[%clk 0:01:11]} 21. f4 {[%clk 0:01:44]}  Bh4 {[%clk 0:01:10]} 22. Qh3 {[%clk 0:01:40]}  Nb4 {[%clk 0:01:06]} 23. f5 {[%clk 0:01:17]}  exf5 {[%clk 0:00:54]} 24. Rxf5 {[%clk 0:01:15]}  Rxc1+ {[%clk 0:00:54]} 25. Bxc1 {[%clk 0:01:15]}  Rc8 {[%clk 0:00:54]} 26. Bxh6 {[%clk 0:01:07]}  gxh6 {[%clk 0:00:49]} 27. Nxh6 {[%clk 0:01:07]}  Rc1+ {[%clk 0:00:46]} 28. Kh2 {[%clk 0:01:06]}  Rc7 {[%clk 0:00:32]} 29. Nxf7+ {[%clk 0:00:58]}  Rxf7 {[%clk 0:00:32]} 30. Rxf7 {[%clk 0:00:59]}  Qg8 {[%clk 0:00:10]} 31. Rc7 {[%clk 0:00:46]}  Be7 {[%clk 0:00:05]} 32. Rxe7 {[%clk 0:00:43]}  Nc6 {[%clk 0:00:03]} 33. Re6 {[%clk 0:00:34]}  Nxd4 {[%clk 0:00:01]} 34. Rh6+ {[%clk 0:00:34]} 1-0


[Site "https://www.chess.com"]

[Event "Titled Tuesday Blitz August 17 2021"]
[White "Trent, Lawrence"]
[Black "Holt, Conrad"]
[WhiteFideId "408638"]
[BlackFideId "2034387"]
[WhiteElo "2474"]
[BlackElo "2586"]
[Result "0-1"]
[Round "04"]
[TimeControl "180+1"]
[Date "2021.08.17"]
[WhiteClock "0:00:19"]
[BlackClock "0:00:06"]

1. e4 {[%clk 0:03:00]}  e6 {[%clk 0:02:55]} 2. d4 {[%clk 0:03:00]}  d5 {[%clk 0:02:56]} 3. Nd2 {[%clk 0:03:00]}  c5 {[%clk 0:02:54]} 4. exd5 {[%clk 0:03:01]}  Qxd5 {[%clk 0:02:54]} 5. dxc5 {[%clk 0:03:01]}  Qxc5 {[%clk 0:02:52]} 6. Ngf3 {[%clk 0:03:01]}  Nf6 {[%clk 0:02:52]} 7. Bd3 {[%clk 0:03:01]}  Nbd7 {[%clk 0:02:51]} 8. O-O {[%clk 0:03:00]}  Be7 {[%clk 0:02:50]} 9. Qe2 {[%clk 0:02:59]}  O-O {[%clk 0:02:46]} 10. c3 {[%clk 0:02:55]}  b6 {[%clk 0:02:41]} 11. Ne4 {[%clk 0:02:55]}  Qc7 {[%clk 0:02:41]} 12. Bg5 {[%clk 0:02:44]}  Bb7 {[%clk 0:02:40]} 13. Nxf6+ {[%clk 0:02:45]}  Bxf6 {[%clk 0:02:40]} 14. Be4 {[%clk 0:02:43]}  Rad8 {[%clk 0:02:27]} 15. Rad1 {[%clk 0:02:40]}  Bxe4 {[%clk 0:01:58]} 16. Qxe4 {[%clk 0:02:39]}  Nc5 {[%clk 0:01:58]} 17. Qc2 {[%clk 0:02:31]}  Bxg5 {[%clk 0:01:51]} 18. Nxg5 {[%clk 0:02:32]}  g6 {[%clk 0:01:50]} 19. Ne4 {[%clk 0:02:30]}  Qf4 {[%clk 0:01:44]} 20. Nxc5 {[%clk 0:02:29]}  bxc5 {[%clk 0:01:45]} 21. g3 {[%clk 0:02:30]}  Qf3 {[%clk 0:01:44]} 22. Rde1 {[%clk 0:02:22]}  Rd3 {[%clk 0:01:38]} 23. Qe2 {[%clk 0:02:17]}  Qd5 {[%clk 0:01:31]} 24. Rd1 {[%clk 0:01:38]}  Rxd1 {[%clk 0:01:03]} 25. Rxd1 {[%clk 0:01:37]}  Qxa2 {[%clk 0:01:04]} 26. Rd7 {[%clk 0:01:37]}  Qa4 {[%clk 0:00:48]} 27. Qd2 {[%clk 0:01:29]}  a6 {[%clk 0:00:22]} 28. h4 {[%clk 0:01:29]}  h5 {[%clk 0:00:14]} 29. Rc7 {[%clk 0:01:28]}  Qa5 {[%clk 0:00:13]} 30. Rd7 {[%clk 0:01:21]}  Qb5 {[%clk 0:00:11]} 31. g4 {[%clk 0:01:06]}  Qc4 {[%clk 0:00:11]} 32. gxh5 {[%clk 0:00:28]}  Qg4+ {[%clk 0:00:11]} 33. Kf1 {[%clk 0:00:29]}  Qxh5 {[%clk 0:00:11]} 34. Qf4 {[%clk 0:00:27]}  a5 {[%clk 0:00:07]} 35. Ra7 {[%clk 0:00:25]}  Qd1+ {[%clk 0:00:07]} 36. Kg2 {[%clk 0:00:25]}  Qd5+ {[%clk 0:00:07]} 37. f3 {[%clk 0:00:25]}  c4 {[%clk 0:00:07]} 38. Kg3 {[%clk 0:00:24]}  Qb5 {[%clk 0:00:06]} 39. Qf6 {[%clk 0:00:19]}  Qb8+ {[%clk 0:00:06]} 0-1


[Site "https://www.chess.com"]

[Event "Titled Tuesday Blitz August 17 2021"]
[White "Turayev, Shahruh"]
[Black "Green, Andrew D"]
[WhiteFideId "14003856"]
[BlackFideId "2401762"]
[WhiteElo "2601"]
[BlackElo "2159"]
[Result "0-1"]
[Round "04"]
[TimeControl "180+1"]
[Date "2021.08.18"]
[WhiteClock "0:00:03"]
[BlackClock "0:00:11"]

1. e4 {[%clk 0:02:58]}  c5 {[%clk 0:02:57]} 2. Nc3 {[%clk 0:02:59]}  g6 {[%clk 0:02:58]} 3. d4 {[%clk 0:02:59]}  cxd4 {[%clk 0:02:55]} 4. Qxd4 {[%clk 0:03:00]}  Nf6 {[%clk 0:02:55]} 5. Nf3 {[%clk 0:02:59]}  Nc6 {[%clk 0:02:55]} 6. Qe3 {[%clk 0:03:00]}  d6 {[%clk 0:02:52]} 7. Bc4 {[%clk 0:03:00]}  Bg7 {[%clk 0:02:51]} 8. O-O {[%clk 0:02:59]}  O-O {[%clk 0:02:51]} 9. h3 {[%clk 0:03:00]}  a6 {[%clk 0:02:49]} 10. Qe2 {[%clk 0:02:59]}  b5 {[%clk 0:02:48]} 11. Bb3 {[%clk 0:02:59]}  Na5 {[%clk 0:02:42]} 12. Bg5 {[%clk 0:02:55]}  Nxb3 {[%clk 0:02:38]} 13. axb3 {[%clk 0:02:56]}  Bb7 {[%clk 0:02:37]} 14. Rad1 {[%clk 0:02:55]}  Rc8 {[%clk 0:02:17]} 15. e5 {[%clk 0:02:53]}  Ne8 {[%clk 0:02:11]} 16. exd6 {[%clk 0:02:51]}  Nxd6 {[%clk 0:02:06]} 17. Qxe7 {[%clk 0:02:36]}  Qxe7 {[%clk 0:01:44]} 18. Bxe7 {[%clk 0:02:37]}  Bxf3 {[%clk 0:01:44]} 19. gxf3 {[%clk 0:02:35]}  Nf5 {[%clk 0:01:41]} 20. Bxf8 {[%clk 0:02:34]}  Kxf8 {[%clk 0:01:35]} 21. Rd7 {[%clk 0:01:03]}  Bxc3 {[%clk 0:01:32]} 22. bxc3 {[%clk 0:01:02]}  Rxc3 {[%clk 0:01:33]} 23. Ra1 {[%clk 0:00:57]}  Rxc2 {[%clk 0:01:26]} 24. Rxa6 {[%clk 0:00:57]}  Rb2 {[%clk 0:01:23]} 25. Raa7 {[%clk 0:00:48]}  Nh6 {[%clk 0:01:23]} 26. Rd3 {[%clk 0:00:48]}  Rb1+ {[%clk 0:01:00]} 27. Kg2 {[%clk 0:00:45]}  Nf5 {[%clk 0:00:59]} 28. Rb7 {[%clk 0:00:44]}  Nh4+ {[%clk 0:00:52]} 29. Kg3 {[%clk 0:00:24]}  Nf5+ {[%clk 0:00:51]} 30. Kf4 {[%clk 0:00:24]}  Kg7 {[%clk 0:00:44]} 31. Rxb5 {[%clk 0:00:18]}  Rh1 {[%clk 0:00:40]} 32. Rb7 {[%clk 0:00:14]}  Rxh3 {[%clk 0:00:38]} 33. b4 {[%clk 0:00:14]}  Rh4+ {[%clk 0:00:37]} 34. Ke5 {[%clk 0:00:13]}  h5 {[%clk 0:00:31]} 35. b5 {[%clk 0:00:13]}  Rb4 {[%clk 0:00:30]} 36. b6 {[%clk 0:00:12]}  h4 {[%clk 0:00:30]} 37. f4 {[%clk 0:00:08]}  Rb5+ {[%clk 0:00:26]} 38. Ke4 {[%clk 0:00:08]}  Rb1 {[%clk 0:00:18]} 39. Kf3 {[%clk 0:00:07]}  h3 {[%clk 0:00:16]} 40. Rdd7 {[%clk 0:00:07]}  Nh6 {[%clk 0:00:14]} 41. Kg3 {[%clk 0:00:04]}  Rh1 {[%clk 0:00:14]} 42. Rb8 {[%clk 0:00:03]}  Nf5+ {[%clk 0:00:14]} 43. Kf3 {[%clk 0:00:02]}  h2 {[%clk 0:00:15]} 44. Kg2 {[%clk 0:00:02]}  Re1 {[%clk 0:00:13]} 45. Kxh2 {[%clk 0:00:02]}  Re2 {[%clk 0:00:13]} 46. Kg2 {[%clk 0:00:03]}  Ne3+ {[%clk 0:00:13]} 47. Kf3 {[%clk 0:00:04]}  Rb2 {[%clk 0:00:10]} 48. fxe3 {[%clk 0:00:03]}  Rb3 {[%clk 0:00:11]} 0-1


[Site "https://www.chess.com"]

[Event "Titled Tuesday Blitz August 17 2021"]
[White "Turner, Max N"]
[Black "Atabayev, Maksat"]
[WhiteFideId "447722"]
[BlackFideId "14001101"]
[WhiteElo "2078"]
[BlackElo "2457"]
[Result "0-1"]
[Round "04"]
[TimeControl "180+1"]
[Date "2021.08.17"]
[WhiteClock "0:00:05"]
[BlackClock "0:00:34"]

1. d4 {[%clk 0:03:00]}  c5 {[%clk 0:02:56]} 2. d5 {[%clk 0:03:00]}  d6 {[%clk 0:02:56]} 3. e4 {[%clk 0:03:00]}  Nf6 {[%clk 0:02:57]} 4. Nd2 {[%clk 0:02:56]}  g6 {[%clk 0:02:56]} 5. Ngf3 {[%clk 0:02:53]}  Bg7 {[%clk 0:02:55]} 6. h3 {[%clk 0:02:52]}  O-O {[%clk 0:02:56]} 7. Bd3 {[%clk 0:02:53]}  b5 {[%clk 0:02:52]} 8. Bxb5 {[%clk 0:02:50]}  Nxe4 {[%clk 0:02:51]} 9. Nxe4 {[%clk 0:02:42]}  Qa5+ {[%clk 0:02:51]} 10. c3 {[%clk 0:02:41]}  Qxb5 {[%clk 0:02:51]} 11. Qe2 {[%clk 0:02:40]}  Ba6 {[%clk 0:02:43]} 12. Qxb5 {[%clk 0:02:34]}  Bxb5 {[%clk 0:02:44]} 13. Bg5 {[%clk 0:02:24]}  Re8 {[%clk 0:02:43]} 14. O-O-O {[%clk 0:02:20]}  a5 {[%clk 0:02:36]} 15. Rhe1 {[%clk 0:02:11]}  Nd7 {[%clk 0:02:36]} 16. Ned2 {[%clk 0:01:45]}  Kf8 {[%clk 0:02:30]} 17. c4 {[%clk 0:01:39]}  Ba6 {[%clk 0:02:28]} 18. a4 {[%clk 0:01:40]}  Rab8 {[%clk 0:02:27]} 19. b3 {[%clk 0:01:39]}  Bc8 {[%clk 0:02:17]} 20. Re2 {[%clk 0:01:36]}  h6 {[%clk 0:02:15]} 21. Bf4 {[%clk 0:01:31]}  Nb6 {[%clk 0:02:02]} 22. Rde1 {[%clk 0:01:27]}  Bd7 {[%clk 0:02:01]} 23. Rxe7 {[%clk 0:01:02]}  Rxe7 {[%clk 0:02:01]} 24. Bxd6 {[%clk 0:01:03]}  Re8 {[%clk 0:02:02]} 25. Bxc5 {[%clk 0:01:03]}  Nc8 {[%clk 0:02:01]} 26. g4 {[%clk 0:00:43]}  Kg8 {[%clk 0:01:52]} 27. Bxe7 {[%clk 0:00:42]}  Rxe7 {[%clk 0:01:52]} 28. Rd1 {[%clk 0:00:36]}  f5 {[%clk 0:01:43]} 29. g5 {[%clk 0:00:25]}  hxg5 {[%clk 0:01:42]} 30. c5 {[%clk 0:00:26]}  g4 {[%clk 0:01:40]} 31. Nh4 {[%clk 0:00:24]}  gxh3 {[%clk 0:01:25]} 32. Nxg6 {[%clk 0:00:19]}  Re2 {[%clk 0:01:24]} 33. c6 {[%clk 0:00:18]}  Be8 {[%clk 0:01:22]} 34. Nc4 {[%clk 0:00:14]}  Bxg6 {[%clk 0:01:17]} 35. d6 {[%clk 0:00:14]}  Bh6+ {[%clk 0:01:07]} 36. Ne3 {[%clk 0:00:01]}  Nxd6 {[%clk 0:00:53]} 37. Rxd6 {[%clk 0:00:02]}  h2 {[%clk 0:00:48]} 38. Rxg6+ {[%clk 0:00:01]}  Kh7 {[%clk 0:00:43]} 39. Rxh6+ {[%clk 0:00:02]}  Kxh6 {[%clk 0:00:43]} 40. Nxf5+ {[%clk 0:00:02]}  Kg5 {[%clk 0:00:40]} 41. Ng3 {[%clk 0:00:03]}  Re6 {[%clk 0:00:39]} 42. Kd2 {[%clk 0:00:03]}  Rxc6 {[%clk 0:00:37]} 43. Ke3 {[%clk 0:00:03]}  Rb6 {[%clk 0:00:37]} 44. Ne4+ {[%clk 0:00:03]}  Kh4 {[%clk 0:00:36]} 45. Ng3 {[%clk 0:00:04]}  Rxb3+ {[%clk 0:00:35]} 46. Ke2 {[%clk 0:00:05]}  Rxg3 {[%clk 0:00:34]} 0-1


[Site "https://www.chess.com"]

[Event "Titled Tuesday Blitz August 17 2021"]
[White "Weetik, Vjacheslav"]
[Black "Dahanayake, Isara Banidu"]
[WhiteFideId "4153472"]
[BlackFideId "9932631"]
[WhiteElo "2469"]
[BlackElo "1394"]
[Result "1-0"]
[Round "04"]
[TimeControl "180+1"]
[Date "2021.08.17"]
[WhiteClock "0:00:06"]
[BlackClock "0:00:07"]

1. d4 {[%clk 0:03:00]}  Nf6 {[%clk 0:02:59]} 2. Bf4 {[%clk 0:03:00]}  g6 {[%clk 0:02:59]} 3. Nf3 {[%clk 0:03:00]}  Bg7 {[%clk 0:02:59]} 4. e3 {[%clk 0:02:58]}  d6 {[%clk 0:02:59]} 5. c4 {[%clk 0:02:57]}  O-O {[%clk 0:02:54]} 6. Nc3 {[%clk 0:02:57]}  c5 {[%clk 0:02:53]} 7. d5 {[%clk 0:02:56]}  a6 {[%clk 0:02:43]} 8. a4 {[%clk 0:02:56]}  Qa5 {[%clk 0:02:41]} 9. Bd3 {[%clk 0:02:45]}  Nh5 {[%clk 0:02:40]} 10. Bg5 {[%clk 0:02:37]}  Re8 {[%clk 0:02:21]} 11. O-O {[%clk 0:02:29]}  Bg4 {[%clk 0:02:06]} 12. Be2 {[%clk 0:02:15]}  Nd7 {[%clk 0:02:03]} 13. h3 {[%clk 0:02:09]}  Bxf3 {[%clk 0:02:02]} 14. Bxf3 {[%clk 0:02:10]}  Nhf6 {[%clk 0:02:02]} 15. Be2 {[%clk 0:02:05]}  Qb4 {[%clk 0:01:49]} 16. Qc2 {[%clk 0:01:53]}  h6 {[%clk 0:01:49]} 17. Bh4 {[%clk 0:01:50]}  Ne5 {[%clk 0:01:18]} 18. b3 {[%clk 0:01:08]}  Ned7 {[%clk 0:01:18]} 19. Rfc1 {[%clk 0:00:59]}  Qb6 {[%clk 0:00:50]} 20. f4 {[%clk 0:00:50]}  Nh7 {[%clk 0:00:49]} 21. Bf3 {[%clk 0:00:45]}  Qb4 {[%clk 0:00:49]} 22. a5 {[%clk 0:00:40]}  g5 {[%clk 0:00:46]} 23. Be1 {[%clk 0:00:34]}  b5 {[%clk 0:00:38]} 24. Ne4 {[%clk 0:00:26]}  Bxa1 {[%clk 0:00:34]} 25. Bxb4 {[%clk 0:00:22]}  Bg7 {[%clk 0:00:32]} 26. Bc3 {[%clk 0:00:21]}  f5 {[%clk 0:00:31]} 27. Ng3 {[%clk 0:00:20]}  Bxc3 {[%clk 0:00:27]} 28. Qxc3 {[%clk 0:00:20]}  Rf8 {[%clk 0:00:27]} 29. Nh5 {[%clk 0:00:18]}  Rf7 {[%clk 0:00:26]} 30. e4 {[%clk 0:00:18]}  b4 {[%clk 0:00:27]} 31. Qb2 {[%clk 0:00:17]}  Nhf6 {[%clk 0:00:23]} 32. exf5 {[%clk 0:00:14]}  Nxh5 {[%clk 0:00:20]} 33. Bxh5 {[%clk 0:00:15]}  Rxf5 {[%clk 0:00:20]} 34. Bg4 {[%clk 0:00:15]}  Rxf4 {[%clk 0:00:20]} 35. Bxd7 {[%clk 0:00:15]}  Raf8 {[%clk 0:00:20]} 36. Be6+ {[%clk 0:00:15]}  Kh7 {[%clk 0:00:20]} 37. Qc2+ {[%clk 0:00:15]}  Kh8 {[%clk 0:00:19]} 38. Re1 {[%clk 0:00:14]}  R8f6 {[%clk 0:00:19]} 39. Bg4 {[%clk 0:00:12]}  Rf7 {[%clk 0:00:19]} 40. Qd2 {[%clk 0:00:11]}  R4f6 {[%clk 0:00:18]} 41. Re3 {[%clk 0:00:11]}  Rf1+ {[%clk 0:00:18]} 42. Kh2 {[%clk 0:00:11]}  R1f4 {[%clk 0:00:15]} 43. Qe2 {[%clk 0:00:11]}  Rf2 {[%clk 0:00:15]} 44. Qd3 {[%clk 0:00:11]}  R2f4 {[%clk 0:00:09]} 45. Re6 {[%clk 0:00:08]}  Rxc4 {[%clk 0:00:09]} 46. Rxh6+ {[%clk 0:00:06]}  Kg8 {[%clk 0:00:08]} 47. Qg6+ {[%clk 0:00:06]}  Rg7 {[%clk 0:00:07]} 48. Qe8# {[%clk 0:00:06]} 1-0


[Site "https://www.chess.com"]

[Event "Titled Tuesday Blitz August 17 2021"]
[White "Yilmaz, Mustafa"]
[Black "Katz, Alexander"]
[WhiteFideId "6302718"]
[BlackFideId "2039796"]
[WhiteElo "2518"]
[BlackElo "2371"]
[Result "1-0"]
[Round "04"]
[TimeControl "180+1"]
[Date "2021.08.17"]
[WhiteClock "0:00:13"]
[BlackClock "0:00:10"]

1. e4 {[%clk 0:03:00]}  e5 {[%clk 0:02:59]} 2. Nf3 {[%clk 0:03:00]}  Nc6 {[%clk 0:02:59]} 3. Bb5 {[%clk 0:03:01]}  a6 {[%clk 0:02:58]} 4. Ba4 {[%clk 0:03:01]}  Nf6 {[%clk 0:02:54]} 5. O-O {[%clk 0:03:01]}  b5 {[%clk 0:02:49]} 6. Bb3 {[%clk 0:03:01]}  Bc5 {[%clk 0:02:50]} 7. c3 {[%clk 0:02:58]}  d6 {[%clk 0:02:43]} 8. d4 {[%clk 0:02:58]}  Bb6 {[%clk 0:02:43]} 9. a4 {[%clk 0:02:57]}  Bg4 {[%clk 0:02:41]} 10. Bg5 {[%clk 0:02:38]}  Rb8 {[%clk 0:02:30]} 11. axb5 {[%clk 0:02:33]}  axb5 {[%clk 0:02:30]} 12. Qd3 {[%clk 0:02:12]}  O-O {[%clk 0:02:02]} 13. Nbd2 {[%clk 0:02:00]}  h6 {[%clk 0:02:00]} 14. Bh4 {[%clk 0:01:58]}  Re8 {[%clk 0:01:53]} 15. Qxb5 {[%clk 0:01:36]}  Ne7 {[%clk 0:00:58]} 16. Bxf6 {[%clk 0:01:23]}  gxf6 {[%clk 0:00:57]} 17. Qc4 {[%clk 0:01:08]}  Be6 {[%clk 0:00:55]} 18. Qd3 {[%clk 0:01:08]}  Ng6 {[%clk 0:00:52]} 19. Bxe6 {[%clk 0:01:06]}  fxe6 {[%clk 0:00:52]} 20. g3 {[%clk 0:01:01]}  Kh7 {[%clk 0:00:52]} 21. Nc4 {[%clk 0:00:51]}  Rg8 {[%clk 0:00:49]} 22. Kh1 {[%clk 0:00:51]}  d5 {[%clk 0:00:45]} 23. Nxb6 {[%clk 0:00:41]}  Rxb6 {[%clk 0:00:40]} 24. dxe5 {[%clk 0:00:41]}  fxe5 {[%clk 0:00:29]} 25. b4 {[%clk 0:00:38]}  Rd6 {[%clk 0:00:22]} 26. exd5 {[%clk 0:00:37]}  Rxd5 {[%clk 0:00:22]} 27. Qe4 {[%clk 0:00:36]}  Rf8 {[%clk 0:00:22]} 28. Ra6 {[%clk 0:00:28]}  Qf6 {[%clk 0:00:22]} 29. Nh4 {[%clk 0:00:21]}  Rd6 {[%clk 0:00:16]} 30. Ra7 {[%clk 0:00:20]}  Rf7 {[%clk 0:00:13]} 31. Nxg6 {[%clk 0:00:17]}  Qxg6 {[%clk 0:00:14]} 32. Qxe5 {[%clk 0:00:17]}  Rd2 {[%clk 0:00:10]} 33. Rxc7 {[%clk 0:00:16]}  Rxf2 {[%clk 0:00:10]} 34. Rxf2 {[%clk 0:00:13]} 1-0


[Site "https://www.chess.com"]